bitfinex/quotes_ETHUSD_20260119
["timestamp","ask_amount","ask_price","bid_price","bid_amount"]
[1768784783977,3.10636182,3219.2,3218.3,12.9385125]
[1768784784370,6.21272364,3219.2,3218.3,12.9385125]
[1768784785166,3.10636182,3219.2,3218.3,12.9385125]
[1768784785469,6.21272364,3219.2,3218.3,12.9385125]
[1768784785669,0.66997236,3219.1,3218.3,12.9385125]
[1768784785870,0.66997236,3219.1,3217.4,12.9385125]
[1768784785871,12.47082448,3219.1,3217.4,12.9385125]
[1768784786095,12.47082448,3219.1,3217.4,12.91620639]
[1768784786598,12.47182448,3219.1,3217.6,3.10789972]
[1768784786893,12.47182448,3219.1,3217.3,12.9385125]
[1768784786894,11.80085212,3218.9,3217.3,12.9385125]
[1768784787069,11.80085212,3218.7,3217.3,16.04662036]
[1768784787275,11.80085212,3218.7,3217.3,12.9385125]
[1768784787685,11.80085212,3218.5,3217.3,12.9385125]
[1768784787878,11.80085212,3218.3,3217.0,3.58646164]
[1768784788082,12.28785212,3218.2,3217.0,16.52497414]
[1768784788481,12.28785212,3218.2,3216.8,16.0471794]
[1768784788679,12.28785212,3218.2,3216.8,12.9385125]
[1768784789475,12.28785212,3218.2,3216.8,16.0471902]
[1768784789673,6.21523352,3217.9,3216.8,16.04716496]
[1768784789873,0.487,3217.8,3216.9,12.9385125]
[1768784790389,0.487,3218.1,3217.1,12.9385125]
[1768784791172,0.487,3218.5,3217.1,13.4007901]
[1768784791790,3.59410319,3218.5,3217.3,12.9385125]
[1768784791989,3.59410319,3218.5,3217.5,12.9385125]
[1768784793213,3.10694796,3218.6,3217.5,12.9385125]
[1768784793214,0.001,3219.1,3217.5,13.4007901]
[1768784793380,0.001,3219.1,3217.7,12.9385125]
[1768784793584,0.001,3219.1,3217.6,0.4385826]
[1768784793585,0.001,3219.1,3217.9,12.9385125]
[1768784793779,0.001,3219.1,3218.1,12.9385125]
[1768784794034,0.001,3219.1,3218.3,12.9385125]
[1768784795888,0.001,3219.1,3218.4,3.10713397]
[1768784796089,0.001,3219.1,3218.5,12.9385125]
[1768784798148,0.001,3219.1,3218.6,15.3082716]
[1768784798317,0.001,3219.1,3218.6,3.1089409]
[1768784798647,0.001,3219.1,3218.6,13.73215786]
[1768784799417,0.487,3219.7,3218.7,12.1993307]
[1768784800042,0.487,3219.7,3218.6,1.53282716]
[1768784800043,3.59295444,3219.7,3218.8,15.30607855]
[1768784800737,16.39897837,3219.7,3218.8,15.30607855]
[1768784800935,19.50493281,3219.7,3218.8,15.30607855]
[1768784801113,16.39897837,3219.7,3218.8,15.79910229]
[1768784801314,13.29302393,3219.7,3218.8,18.90585014]
[1768784801618,16.39891001,3219.7,3218.8,18.90585014]
[1768784802148,13.29302393,3219.7,3218.9,12.1993307]
[1768784802449,3.59292314,3219.7,3218.9,12.1993307]
[1768784802751,0.487,3219.8,3218.9,13.73015786]
[1768784804668,3.59282206,3219.8,3218.9,16.83672271]
[1768784804865,0.487,3219.8,3218.9,19.94337405]
[1768784806337,12.80602393,3219.7,3218.9,16.83672271]
[1768784806729,12.80602393,3219.7,3219.0,3.59949591]
[1768784806942,12.80602393,3219.7,3219.0,3.10647217]
[1768784807430,12.80602393,3219.7,3218.9,12.1993307]
[1768784807431,15.91191187,3219.7,3218.9,3.10662118]
[1768784807831,15.91191187,3219.7,3219.0,3.10652209]
[1768784808029,12.80602393,3219.7,3219.0,3.10652209]
[1768784808647,12.80602393,3219.7,3218.7,0.478]
[1768784808648,0.487,3219.8,3219.2,3.10636182]
[1768784808861,0.487,3219.8,3219.1,15.30575197]
[1768784810348,0.487,3219.8,3219.1,18.41221029]
[1768784810544,0.487,3219.8,3219.2,12.1993307]
[1768784810760,0.001,3219.5,3219.0,12.1993307]
[1768784810959,0.001,3219.5,3219.1,4.32631774]
[1768784811348,0.001,3219.5,3219.1,1.21993307]
[1768784811654,0.001,3219.5,3219.0,12.1993307]
[1768784811655,0.001,3219.5,3219.0,15.30588453]
[1768784811843,0.001,3219.5,3219.1,3.10645369]
[1768784812160,0.001,3219.5,3219.0,12.1993307]
[1768784812359,0.001,3219.5,3219.3,12.1993307]
[1768784812523,12.80602393,3220.2,3219.4,12.00057601]
[1768784812524,0.487,3219.9,3219.4,12.00057601]
[1768784812728,0.338,3219.9,3219.5,4.30603919]
[1768784813232,0.338,3219.9,3219.5,7.41211156]
[1768784813443,0.487,3220.0,3219.5,7.41211156]
[1768784813858,12.70834319,3220.4,3219.6,12.00057601]
[1768784814048,0.487,3220.1,3219.6,12.00057601]
[1768784814244,0.487,3220.1,3219.5,4.30603919]
[1768784814575,0.487,3220.1,3219.2,12.00057601]
[1768784814576,13.19534319,3220.1,3219.2,12.00057601]
[1768784814726,13.19534319,3220.1,3219.2,3.10630274]
[1768784814727,3.10559006,3220.0,3219.2,3.10630274]
[1768784814934,12.70834319,3219.9,3219.2,3.10630274]
[1768784815132,12.70834319,3219.9,3218.6,0.002]
[1768784816870,12.70834319,3219.7,3218.6,0.002]
[1768784817067,12.70834319,3219.5,3218.6,0.002]
[1768784819255,12.70834319,3219.3,3218.6,0.002]
[1768784819455,13.19534319,3219.2,3218.6,0.002]
[1768784820581,13.19534319,3219.2,3217.0,15.1109915]
[1768784820582,12.70834319,3219.1,3217.0,15.1109915]
[1768784820866,7.15821302,3219.2,3217.2,3.10825479]
[1768784820867,12.70834319,3218.9,3217.2,3.10825479]
[1768784821066,12.70834319,3218.7,3217.0,0.002]
[1768784821265,0.487,3218.8,3217.0,0.002]
[1768784821266,12.70834319,3218.5,3217.0,0.002]
[1768784821480,15.5347045,3218.6,3217.0,0.002]
[1768784821481,12.70834319,3218.3,3217.0,0.002]
[1768784821635,12.70834319,3218.1,3217.0,0.002]
[1768784821828,12.70834319,3217.9,3217.0,0.002]
[1768784822229,0.487,3217.8,3217.0,0.002]
[1768784822444,0.487,3217.8,3216.2,0.002]
[1768784822445,13.19534319,3217.8,3216.2,0.002]
[1768784822961,0.487,3217.7,3216.7,15.10932513]
[1768784823165,6.21581302,3217.6,3217.3,0.002]
[1768784823353,6.21581302,3217.6,3216.7,12.00057601]
[1768784823527,6.21581302,3217.6,3216.2,0.002]
[1768784823528,12.70834319,3217.5,3216.2,0.002]
[1768784824132,12.70834319,3217.5,3216.2,12.00257601]
[1768784824327,12.70834319,3217.5,3216.3,15.10970393]
[1768784824530,14.60075881,3217.4,3216.3,15.10970393]
[1768784824770,13.19534319,3217.3,3216.3,15.10970393]
[1768784825131,13.19534319,3217.3,3216.3,12.00057601]
[1768784825366,3.10829292,3217.2,3216.3,15.10973102]
[1768784825569,6.21658584,3217.2,3216.3,12.00057601]
[1768784825738,14.64953609,3217.1,3216.2,0.002]
[1768784827267,12.70834319,3216.9,3216.2,0.002]
[1768784827466,12.70834319,3216.7,3216.2,0.002]
[1768784827988,12.70834319,3216.7,3215.9,0.002]
[1768784830054,12.70834319,3216.5,3215.9,0.002]
[1768784830255,12.70834319,3216.3,3215.1,0.002]
[1768784831894,12.43549088,3216.6,3215.1,0.002]
[1768784831895,12.70834319,3216.1,3215.1,0.002]
[1768784832207,12.70834319,3215.7,3215.1,0.002]
[1768784832494,12.70834319,3215.5,3214.6,0.002]
[1768784832691,13.51073754,3215.4,3214.6,3.11279388]
[1768784832995,0.488,3215.3,3214.6,0.002]
[1768784833298,0.488,3215.3,3214.6,3.11280043]
[1768784834394,3.5981501,3215.3,3214.6,0.002]
[1768784834699,0.488,3215.3,3214.6,0.002]
[1768784835069,3.59813534,3215.3,3214.6,0.002]
[1768784835417,0.488,3215.3,3214.6,0.002]
[1768784835556,0.488,3215.3,3215.0,0.002]
[1768784835972,3.59813752,3215.3,3215.0,0.002]
[1768784836193,3.11013752,3215.3,3215.0,0.002]
[1768784836495,0.488,3215.2,3215.0,0.002]
[1768784837263,12.70834319,3216.0,3215.0,0.002]
[1768784837561,12.70834319,3215.8,3215.0,0.002]
[1768784838360,12.70834319,3215.6,3215.0,0.002]
[1768784838562,13.19634319,3215.5,3214.6,0.002]
[1768784839202,12.70834319,3215.3,3214.0,12.00057601]
[1768784839368,0.128,3215.4,3214.0,12.00057601]
[1768784839369,12.70834319,3215.1,3214.0,12.00057601]
[1768784839568,1.28363432,3215.2,3213.9,0.002]
[1768784839569,12.70834319,3214.9,3213.9,0.002]
[1768784840175,12.70834319,3214.9,3213.9,12.00257601]
[1768784840396,6.22122682,3214.8,3213.9,12.00257601]
[1768784840578,19.41757001,3214.8,3213.9,12.00257601]
[1768784840770,1.941757,3214.7,3213.9,12.00257601]
[1768784841905,1.941757,3214.7,3213.9,15.11405593]
[1768784842066,1.941757,3214.7,3213.9,12.00257601]
[1768784842262,1.941757,3214.7,3214.0,12.00057601]
[1768784842462,0.488,3214.6,3214.0,12.00057601]
[1768784842663,0.488,3214.6,3214.1,12.37173977]
[1768784842938,12.73524782,3214.5,3213.9,0.002]
[1768784844315,3.59887017,3214.6,3213.9,3.11346405]
[1768784844316,3.11087017,3214.6,3213.9,3.11346405]
[1768784844525,0.488,3214.5,3213.9,12.37373977]
[1768784844723,3.59896185,3214.5,3213.9,12.37373977]
[1768784844947,0.488,3214.5,3213.9,15.48521627]
[1768784845113,0.488,3214.5,3214.0,12.37173977]
[1768784845314,1.28363432,3215.2,3214.2,12.37173977]
[1768784845315,14.01888214,3215.2,3214.2,12.37173977]
[1768784845516,1.28363432,3215.2,3214.2,12.37173977]
[1768784845713,1.39883432,3215.9,3214.2,12.37173977]
[1768784845714,0.488,3215.3,3214.2,12.37173977]
[1768784845913,0.488,3215.3,3214.1,8.69873465]
[1768784845914,0.488,3215.3,3214.4,12.37173977]
[1768784846748,6.22045284,3215.2,3214.4,12.37173977]
[1768784846922,3.11022642,3215.2,3214.4,12.37173977]
[1768784847128,5.05458866,3215.2,3214.4,15.48271932]
[1768784847724,1.94436224,3215.2,3214.5,12.37173977]
[1768784848027,0.488,3215.4,3214.5,12.37173977]
[1768784848410,12.73524782,3216.2,3214.6,0.4385826]
[1768784848627,0.488,3216.1,3214.8,9.33184023]
[1768784848834,0.488,3216.1,3214.9,12.37173977]
[1768784849051,2.12125506,3216.1,3215.1,12.37173977]
[1768784849420,3.10871348,3216.8,3215.1,12.37173977]
[1768784849421,12.73524782,3217.2,3215.5,12.37173977]
[1768784850245,12.73524782,3217.2,3215.2,12.37173977]
[1768784850432,0.488,3217.3,3215.2,12.37173977]
[1768784850433,12.73524782,3217.0,3215.2,12.37173977]
[1768784850743,12.73524782,3216.6,3215.0,3.1104199]
[1768784850920,12.73524782,3216.4,3215.1,12.37173977]
[1768784851961,13.22324782,3216.3,3215.1,12.37173977]
[1768784852129,12.73524782,3216.6,3215.1,12.37173977]
[1768784852454,15.11852782,3216.5,3215.3,12.37173977]
[1768784852817,3.10906603,3216.4,3215.4,3.11003296]
[1768784853016,3.10906603,3216.4,3215.2,1.85925796]
[1768784853017,12.73524782,3216.3,3215.2,1.85925796]
[1768784853312,12.73524782,3216.3,3215.2,17.34121714]
[1768784853537,12.73524782,3216.3,3215.3,3.11009692]
[1768784853739,14.86891381,3216.3,3215.3,3.11009692]
[1768784853933,14.86891381,3216.3,3215.2,14.23099773]
[1768784854339,14.86891381,3216.3,3215.0,3.11035497]
[1768784854340,14.86891381,3216.3,3214.9,15.48224047]
[1768784854538,14.86891381,3216.3,3215.0,3.11041917]
[1768784854932,14.86891381,3216.3,3215.0,12.37173977]
[1768784854933,12.73524782,3216.1,3215.0,12.37173977]
[1768784855132,13.22324782,3216.0,3215.0,12.37173977]
[1768784855474,2.13366599,3216.3,3215.0,12.37173977]
[1768784855637,0.488,3216.3,3215.2,12.37173977]
[1768784856946,0.488,3216.3,3215.4,12.37173977]
[1768784857558,3.10848616,3217.0,3215.5,12.37173977]
[1768784857761,12.73524782,3217.1,3215.5,12.37173977]
[1768784857762,0.488,3216.9,3215.5,12.37173977]
[1768784858064,0.488,3216.8,3215.7,12.03345867]
[1768784858429,0.488,3216.9,3215.7,12.03345867]
[1768784858629,12.55694325,3216.9,3215.7,12.03345867]
[1768784858863,12.06894325,3216.7,3215.7,12.03345867]
[1768784859025,12.06894325,3216.7,3215.7,15.14319887]
[1768784859224,0.001,3216.5,3215.7,12.03345867]
[1768784859473,0.488,3216.4,3215.7,15.14318595]
[1768784859654,0.001,3216.5,3215.8,12.03345867]
[1768784859853,12.06894325,3217.3,3215.9,12.03345867]
[1768784860052,3.59638277,3217.2,3215.9,12.03345867]
[1768784860257,3.59638277,3217.2,3215.8,0.479]
[1768784860258,0.488,3217.1,3216.1,12.03345867]
[1768784860950,6.21697232,3217.0,3216.1,12.03345867]
[1768784861341,0.488,3216.9,3216.1,12.03345867]
[1768784861536,12.55694325,3216.9,3215.8,12.51245867]
[1768784861780,13.94633481,3216.8,3215.8,15.14303453]
[1768784861963,13.94633481,3216.8,3215.9,3.10953151]
[1768784862165,1.87739156,3216.8,3215.8,12.03345867]
[1768784862373,0.488,3216.7,3216.1,12.03345867]
[1768784862565,0.488,3216.7,3215.5,12.03345867]
[1768784862869,0.488,3216.7,3215.7,15.14316884]
[1768784863057,3.10887272,3216.6,3215.8,15.14301416]
[1768784863661,6.21774544,3216.6,3215.8,12.03345867]
[1768784864249,6.88831998,3216.6,3215.8,12.03345867]
[1768784864575,3.77944726,3216.6,3215.8,12.03345867]
[1768784864748,0.488,3216.5,3215.8,12.03345867]
[1768784865458,0.488,3216.6,3216.0,12.03345867]
[1768784866184,3.10838954,3217.1,3216.0,12.03345867]
[1768784866366,0.488,3216.8,3216.0,12.03345867]
[1768784866572,0.488,3216.8,3216.2,12.03345867]
[1768784866961,0.488,3216.8,3216.1,1.20334587]
[1768784867156,0.488,3216.8,3215.9,12.03345867]
[1768784867372,3.10877607,3216.7,3215.9,15.14298107]
[1768784867764,3.10877607,3216.7,3215.8,3.10963262]
[1768784867765,12.06894325,3216.6,3215.8,3.10963262]
[1768784867996,12.06894325,3216.6,3215.7,3.10971731]
[1768784868165,12.06894325,3216.6,3215.7,12.03345867]
[1768784868376,1.87744058,3216.7,3215.9,3.1095466]
[1768784869380,4.98625634,3216.7,3215.8,18.25275091]
[1768784869584,8.0950721,3216.7,3215.8,16.94093344]
[1768784869791,4.98625634,3216.7,3215.8,20.05057956]
[1768784869962,3.10805953,3217.5,3215.8,20.05057956]
[1768784869963,15.17704295,3217.4,3215.9,12.03345867]
[1768784870154,18.28514265,3217.4,3215.9,12.03345867]
[1768784870352,18.28514265,3217.4,3216.1,12.03345867]
[1768784870353,3.1080997,3217.4,3216.1,12.03345867]
[1768784870688,12.06894325,3217.2,3215.8,16.94093344]
[1768784870890,12.06894325,3217.0,3216.0,0.002]
[1768784871055,0.001,3216.5,3216.0,0.002]
[1768784871452,0.001,3216.5,3216.0,3.11145273]
[1768784871658,0.001,3216.5,3215.6,0.002]
[1768784871886,0.62187454,3216.4,3215.6,0.002]
[1768784872204,12.69081779,3216.4,3215.6,0.002]
[1768784872373,0.488,3216.3,3215.6,0.002]
[1768784872691,12.95787193,3216.3,3215.6,0.002]
[1768784873553,6.21851874,3216.2,3215.6,0.002]
[1768784873755,1.91763907,3216.1,3215.6,0.002]
[1768784875193,14.387511,3216.1,3215.6,0.002]
[1768784875572,3.10945273,3216.0,3215.6,0.002]
[1768784875757,6.21890546,3216.0,3215.6,0.002]
[1768784876457,3.10945273,3216.0,3215.6,0.002]
[1768784876657,0.489,3215.9,3215.6,0.002]
[1768784878361,3.10964612,3215.8,3215.1,12.60626199]
[1768784878862,15.57951805,3215.8,3215.1,0.479]
[1768784879397,18.68916417,3215.8,3215.1,0.479]
[1768784879606,1.91781642,3215.7,3215.1,0.479]
[1768784879903,14.38768835,3215.7,3215.1,0.479]
[1768784880212,0.489,3215.9,3215.2,12.12726199]
[1768784880522,3.10925937,3216.2,3215.1,3.58931549]
[1768784880523,0.489,3216.1,3215.3,12.12726199]
[1768784881688,12.95887193,3216.1,3215.1,3.58931022]
[1768784881993,12.95887193,3216.1,3215.1,12.60626199]
[1768784882294,12.95887193,3216.1,3215.2,15.23747349]
[1768784882500,1.60681313,3216.0,3215.2,18.34769991]
[1768784882794,1.60681313,3216.0,3215.2,15.23747349]
[1768784882960,1.60681313,3216.0,3215.2,12.12726199]
[1768784883360,14.07668506,3216.0,3215.6,0.002]
[1768784884310,1.60681313,3216.0,3215.6,0.002]
[1768784884521,3.10950743,3216.0,3215.6,0.002]
[1768784884682,18.68888679,3216.0,3215.6,0.002]
[1768784884881,12.46987193,3215.9,3215.3,0.002]
[1768784885976,19.17788679,3216.0,3215.3,0.002]
[1768784886308,0.37358083,3215.9,3215.3,0.002]
[1768784886503,3.10964612,3215.8,3215.3,0.002]
[1768784886901,0.37358083,3215.9,3215.3,12.12926199]
[1768784887103,0.62287454,3216.4,3215.3,12.12926199]
[1768784887104,0.001,3216.4,3215.3,12.12926199]
[1768784888094,0.001,3216.4,3215.5,12.12726199]
[1768784888285,0.001,3216.4,3215.7,12.12726199]
[1768784888482,0.001,3216.4,3215.9,12.12726199]
[1768784888687,6.2161994,3217.4,3215.9,12.12726199]
[1768784888992,12.46987193,3217.6,3215.9,12.12726199]
[1768784888993,15.57787014,3217.6,3215.9,12.12726199]
[1768784889387,3.10799821,3217.6,3215.9,12.12726199]
[1768784889785,12.95887193,3218.0,3215.9,12.12726199]
[1768784890019,18.68510545,3217.9,3215.9,12.12726199]
[1768784890183,14.38728247,3217.8,3216.1,12.12726199]
[1768784890383,14.38728247,3217.8,3216.2,0.48]
[1768784890602,12.46987193,3217.6,3216.2,0.48]
[1768784891207,12.46987193,3217.4,3216.2,0.48]
[1768784891508,12.46987193,3217.2,3216.2,0.48]
[1768784892017,12.46987193,3217.2,3216.2,15.71652113]
[1768784892313,1.29588719,3217.3,3216.3,12.12726199]
[1768784892615,12.46987193,3217.5,3216.3,12.12726199]
[1768784892811,3.1080997,3217.4,3216.5,12.12726199]
[1768784893187,18.68607133,3217.4,3216.5,12.12726199]
[1768784893514,12.46987193,3217.3,3216.3,3.10914462]
[1768784893818,12.46987193,3217.3,3216.3,15.23640661]
[1768784893984,14.33847906,3217.2,3216.2,12.60726199]
[1768784894179,6.2161994,3217.4,3216.3,0.48]
[1768784894392,6.2161994,3217.4,3216.4,12.12726199]
[1768784894714,3.1080997,3217.4,3216.4,12.12726199]
[1768784894919,3.1080997,3217.4,3216.5,15.23623136]
[1768784895090,1.86859884,3217.3,3216.5,12.12726199]
[1768784895288,3.1080997,3217.4,3216.5,12.12726199]
[1768784895489,3.10780992,3217.7,3216.5,12.12726199]
[1768784895722,0.001,3216.9,3216.5,12.12726199]
[1768784896019,18.68556392,3217.7,3216.5,12.12726199]
[1768784896686,12.46987193,3217.6,3216.5,12.12726199]
[1768784896886,18.68607133,3217.4,3216.5,12.12726199]
[1768784897292,18.68607133,3217.4,3216.5,15.23621908]
[1768784897293,15.57797163,3217.4,3216.5,15.23621908]
[1768784897506,2.1793446,3217.5,3216.6,12.12726199]
[1768784897707,3.10791402,3217.6,3216.6,12.12726199]
[1768784897891,15.57778595,3217.6,3216.6,12.12726199]
[1768784898107,18.68569997,3217.6,3216.6,12.12726199]
[1768784898314,15.57778595,3217.6,3216.6,12.12726199]
[1768784898844,18.68569997,3217.6,3216.6,12.12726199]
[1768784899039,3.1080997,3217.4,3216.6,12.12726199]
[1768784899246,6.2161994,3217.4,3216.6,12.12726199]
[1768784899405,12.46987193,3218.1,3216.7,12.12726199]
[1768784899603,12.46987193,3218.1,3216.8,12.60726199]
[1768784899804,12.46987193,3218.1,3216.8,0.48]
[1768784900036,12.46987193,3217.9,3216.8,0.48]
[1768784901032,12.46987193,3217.7,3216.8,0.48]
[1768784902343,6.21542668,3217.8,3216.8,12.60726199]
[1768784902566,3.10771334,3217.8,3216.9,12.71777758]
[1768784903017,0.617,3218.7,3217.1,12.71777758]
[1768784903018,12.88977435,3218.7,3217.1,12.71777758]
[1768784903218,12.88977435,3218.3,3216.5,15.82668485]
[1768784903417,12.88977435,3218.1,3216.2,12.71777758]
[1768784903627,12.88977435,3217.9,3216.3,13.19777758]
[1768784904318,12.88977435,3217.7,3216.3,13.19777758]
[1768784904935,12.88977435,3217.5,3216.3,12.71777758]
[1768784905134,12.88977435,3217.5,3216.4,0.48]
[1768784906155,12.88977435,3217.5,3216.0,12.71777758]
[1768784906357,12.88977435,3217.3,3216.1,0.48]
[1768784907137,12.88977435,3217.1,3216.1,0.48]
[1768784907841,12.88977435,3217.1,3216.1,13.19777758]
[1768784908027,3.10829292,3217.2,3216.2,12.71777758]
[1768784908645,6.21658584,3217.2,3216.2,12.71777758]
[1768784909464,12.88977435,3217.2,3216.2,12.71777758]
[1768784909825,12.88977435,3217.8,3216.2,15.8270253]
[1768784910025,12.88977435,3217.6,3216.2,15.8270253]
[1768784911658,12.88977435,3217.4,3216.3,12.71777758]
[1768784911843,6.2160062,3217.5,3216.3,12.71777758]
[1768784912037,7.14839401,3217.5,3216.5,12.71777758]
[1768784912335,7.14839401,3217.5,3216.6,13.19777758]
[1768784913532,4.04039091,3217.5,3216.7,12.71777758]
[1768784913732,7.14839401,3217.5,3216.7,12.71777758]
[1768784914270,6.2160062,3217.5,3216.7,12.71777758]
[1768784914433,3.10780992,3217.7,3216.7,12.71777758]
[1768784914840,3.10761676,3217.9,3216.7,12.71777758]
[1768784915144,12.88977435,3218.3,3216.7,12.71777758]
[1768784915145,6.21446104,3218.3,3216.7,12.71777758]
[1768784915686,6.21526794,3218.4,3216.9,12.71777758]
[1768784915971,12.88977435,3218.3,3216.9,12.71777758]
[1768784916265,12.88977435,3218.1,3216.9,13.05018767]
[1768784917990,11.78070964,3217.9,3217.0,12.62573195]
[1768784918475,11.78070964,3217.9,3217.1,0.48]
[1768784918661,11.78070964,3217.9,3216.7,12.62573195]
[1768784918855,11.78070964,3217.9,3216.8,13.10573195]
[1768784919036,2.11032702,3217.8,3217.0,12.62573195]
[1768784919837,6.21561984,3217.7,3217.0,12.62573195]
[1768784920270,3.10780992,3217.7,3217.0,12.62573195]
[1768784920486,0.001,3217.9,3217.0,15.73421428]
[1768784920786,3.10865725,3217.9,3217.1,12.62573195]
[1768784920988,6.2163145,3217.9,3217.1,12.62573195]
[1768784921349,3.7302887,3217.9,3217.1,12.62573195]
[1768784921548,3.10865711,3217.9,3217.1,12.62573195]
[1768784921960,11.78170964,3217.9,3217.1,12.62573195]
[1768784923176,11.78170964,3217.9,3217.2,0.48]
[1768784923577,0.001,3217.9,3217.2,13.10573195]
[1768784923872,0.001,3217.9,3217.3,3.10819631]
[1768784924052,0.001,3217.9,3217.4,12.62573195]
[1768784928781,0.001,3217.9,3217.4,15.7338072]
[1768784929563,0.001,3217.9,3217.4,12.62573195]
[1768784930281,0.001,3217.9,3217.2,13.10573195]
[1768784930449,11.78170964,3217.9,3217.2,13.10573195]
[1768784930650,0.001,3217.6,3217.2,13.10573195]
[1768784931051,0.001,3217.6,3216.3,15.73487228]
[1768784931052,11.78070964,3217.5,3216.3,15.73487228]
[1768784931260,11.78070964,3217.3,3216.4,0.48]
[1768784932250,6.21658584,3217.2,3216.4,0.48]
[1768784932476,11.78070964,3217.1,3216.4,0.48]
[1768784932877,1.17817096,3217.4,3216.4,12.43595866]
[1768784933155,0.001,3217.6,3216.5,11.95595866]
[1768784933156,3.10896571,3217.6,3216.5,11.95595866]
[1768784933356,0.001,3217.6,3216.5,11.95595866]
[1768784933875,15.63982872,3217.6,3216.5,11.95595866]
[1768784934075,0.001,3217.6,3216.6,0.03108872]
[1768784934288,0.001,3217.6,3216.7,11.95595866]
[1768784934484,0.001,3217.6,3216.9,15.06454145]
[1768784934678,0.001,3217.6,3217.0,0.48]
[1768784934886,0.001,3217.6,3216.8,1.19559587]
[1768784935074,0.001,3217.6,3216.0,12.43595866]
[1768784935075,12.53092077,3217.5,3216.0,12.43595866]
[1768784936259,12.53092077,3217.5,3216.0,15.54532303]
[1768784936588,3.10820379,3217.3,3216.2,11.95595866]
[1768784936790,12.53092077,3217.2,3216.2,11.95595866]
[1768784936990,12.53092077,3217.2,3216.3,0.48]
[1768784937160,12.53092077,3217.2,3216.4,0.48]
[1768784937759,12.53092077,3217.2,3216.4,12.43595866]
[1768784937971,6.21640758,3217.3,3216.4,12.43595866]
[1768784938391,12.53092077,3217.5,3216.4,15.54501879]
[1768784938392,3.1080997,3217.4,3216.4,15.54501879]
[1768784938599,15.63902047,3217.4,3216.4,15.54501879]
[1768784938771,12.53092077,3217.3,3216.4,12.43595866]
[1768784938971,1.87471429,3217.2,3216.4,12.43595866]
[1768784939360,14.40563506,3217.2,3216.4,11.95595866]
[1768784939566,14.40563506,3217.2,3216.5,0.481]
[1768784940498,17.5140121,3217.2,3216.5,0.481]
[1768784940709,12.53092077,3217.1,3216.5,0.481]
[1768784941005,2.06223891,3217.0,3216.5,0.481]
[1768784941291,12.53092077,3217.1,3216.5,0.481]
[1768784942303,12.53092077,3217.1,3215.3,11.95795866]
[1768784942463,12.53092077,3216.9,3215.6,12.43695866]
[1768784943267,12.53092077,3216.7,3215.3,0.002]
[1768784943467,12.53092077,3216.7,3215.4,0.481]
[1768784943677,1.26589208,3216.6,3215.6,11.95595866]
[1768784943897,1.26589208,3216.6,3215.6,15.0657965]
[1768784944075,12.53092077,3216.8,3215.7,11.95595866]
[1768784944463,3.10877607,3216.7,3215.7,3.10964779]
[1768784944695,3.10877607,3216.7,3215.8,11.95595866]
[1768784944696,6.21755214,3216.7,3215.8,11.95595866]
[1768784944904,6.21755214,3216.7,3215.9,0.481]
[1768784945194,15.63892387,3217.5,3215.9,12.43695866]
[1768784945396,13.52264878,3217.4,3216.1,11.95595866]
[1768784946601,13.52264878,3217.4,3216.2,11.95595866]
[1768784946602,6.21639262,3217.3,3216.2,11.95595866]
[1768784947800,3.10819631,3217.3,3216.2,11.95595866]
[1768784948006,6.21639262,3217.3,3216.2,11.95595866]
[1768784948212,7.24889199,3217.3,3216.3,11.95595866]
[1768784948416,7.24889199,3217.3,3216.4,0.481]
[1768784948590,7.24889199,3217.3,3216.4,3.59006128]
[1768784948791,7.24889199,3217.3,3216.4,12.43695866]
[1768784949091,4.14069568,3217.3,3216.4,15.54600524]
[1768784949410,7.24889199,3217.3,3216.4,15.54600912]
[1768784949579,4.14069568,3217.3,3216.4,15.54600912]
[1768784949775,3.10819631,3217.3,3216.5,11.95595866]
[1768784950709,18.74773379,3217.6,3216.5,11.95595866]
[1768784950881,12.53092077,3217.5,3216.5,11.95595866]
[1768784951282,12.53092077,3217.5,3216.5,15.06492386]
[1768784951706,12.53092077,3217.5,3216.6,11.95595866]
[1768784951919,6.21681302,3217.6,3216.6,11.95595866]
[1768784951920,0.001,3217.6,3216.6,11.95595866]
[1768784952117,0.001,3217.6,3216.4,0.481]
[1768784952118,12.53192077,3217.6,3216.7,0.481]
[1768784952729,12.53092077,3217.4,3216.6,0.481]
[1768784953716,12.53092077,3217.4,3216.2,11.95595866]
[1768784953883,12.53092077,3217.4,3216.0,3.10939513]
[1768784954084,12.53092077,3217.4,3215.9,0.481]
[1768784954622,6.21639262,3217.3,3216.1,11.95595866]
[1768784954935,15.64011708,3217.3,3216.1,11.95595866]
[1768784955736,0.001,3217.3,3216.1,11.95595866]
[1768784956510,12.53192077,3217.3,3216.2,0.481]
[1768784956697,12.53192077,3217.3,3216.5,11.95595866]
[1768784956898,0.001,3217.3,3216.5,11.95595866]
[1768784957435,0.001,3217.6,3216.5,11.95595866]
[1768784958144,0.001,3217.9,3216.6,11.95595866]
[1768784958310,0.001,3217.9,3216.8,11.95595866]
[1768784958716,0.001,3217.9,3217.0,11.95595866]
[1768784960838,0.001,3217.9,3217.2,11.95595866]
[1768784961047,0.001,3217.9,3217.4,11.95595866]
[1768784961410,0.49,3218.6,3217.5,11.95595866]
[1768784961612,12.53092077,3218.7,3217.5,11.95595866]
[1768784961931,10.09,3219.8,3217.5,11.95595866]
[1768784961932,15.6371861,3219.3,3217.5,11.95595866]
[1768784962239,19.50515921,3220.5,3217.7,11.95595866]
[1768784962240,3.10609822,3219.5,3217.7,11.95595866]
[1768784962443,3.10609822,3219.5,3217.9,11.95595866]
[1768784962748,12.53092077,3219.6,3218.1,11.903934]
[1768784962936,3.10607237,3219.5,3218.3,11.903934]
[1768784963275,4.9803703,3219.5,3218.5,11.903934]
[1768784963474,1.87429793,3219.5,3218.5,11.903934]
[1768784964445,3.10601069,3219.6,3218.5,11.903934]
[1768784964736,3.10596078,3219.7,3218.5,11.903934]
[1768784964937,3.10596078,3219.7,3218.7,11.903934]
[1768784965138,3.10596078,3219.7,3218.8,12.384934]
[1768784965331,6.21192156,3219.7,3218.8,12.384934]
[1768784965531,8.04528025,3219.7,3218.8,12.384934]
[1768784965933,4.93931947,3219.7,3218.8,12.384934]
[1768784966365,17.06098481,3219.7,3218.8,12.384934]
[1768784966564,20.16694559,3219.7,3218.8,12.384934]
[1768784966758,12.12166534,3219.6,3218.8,12.384934]